fUST/lending_fUST_20241001
["ID","MTS","AMOUNT","RATE_DAILY","PERIOD"]
[339593256,1727722605474,500.0,0.00021999,120]
[339593257,1727722606750,500.0,0.00021999,120]
[339593258,1727722608166,500.0,0.00021999,120]
[339593259,1727722608311,500.0,0.00021999,120]
[339593260,1727722611891,500.0,0.00021999,120]
[339593261,1727722611942,500.0,0.00021999,120]
[339593262,1727722612754,544.1,0.00021999,120]
[339593263,1727722612803,500.0,0.00021999,120]
[339593264,1727722613552,500.0,0.00021999,120]
[339593265,1727722614523,500.0,0.00021999,120]
[339593266,1727722616981,500.0,0.00021999,120]
[339593267,1727722618033,500.0,0.00021999,120]
[339593268,1727722619521,500.0,0.00021999,120]
[339593269,1727722621271,500.0,0.00021999,120]
[339593270,1727722622687,500.0,0.00021999,120]
[339593271,1727722624740,500.0,0.00021999,120]
[339593272,1727722625383,500.0,0.00021999,120]
[339593273,1727722627350,825.27,0.00021999,120]
[339593274,1727722627859,500.0,0.00021999,120]
[339593275,1727722630865,537.05,0.00021999,120]
[339593276,1727722633041,508.27077387,0.00021999,120]
[339593277,1727722636067,987.85,0.00021999,120]
[339593278,1727722637798,500.0,0.00021999,120]
[339593279,1727722643748,500.0,0.00021999,120]
[339593280,1727722646941,300.85,0.00021999,120]
[339593281,1727722650874,500.0,0.00021999,120]
[339593282,1727722652285,500.0,0.00021999,120]
[339593283,1727722654878,500.0,0.00021999,120]
[339593284,1727722657390,500.0,0.00021999,120]
[339593285,1727722659387,500.0,0.00021999,120]
[339593286,1727722661099,500.0,0.00021999,120]
[339593287,1727722661706,500.0,0.00021999,120]
[339593288,1727722663931,500.0,0.00021999,120]
[339593289,1727722664208,500.0,0.00021999,120]
[339593290,1727722665063,500.0,0.00021999,120]
[339593291,1727722668907,305.12995595,0.00021999,120]
[339593292,1727722670163,776.82,0.00021999,120]
[339593293,1727722670689,500.0,0.00021999,120]
[339593294,1727722671154,500.0,0.00021999,120]
[339593295,1727722673793,500.0,0.00021999,120]
[339593296,1727722674208,500.0,0.00021999,120]
[339593297,1727722674362,500.0,0.00021999,120]
[339593299,1727722675648,500.0,0.00021999,120]
[339593300,1727722677971,500.0,0.00021999,120]
[339593301,1727722678833,500.0,0.00021999,120]
[339593302,1727722680787,500.0,0.00021999,120]
[339593303,1727722681400,633.42,0.00021999,120]
[339593304,1727722681452,500.0,0.00021999,120]
[339593305,1727722681836,693.13,0.00021999,120]
[339593306,1727722684843,1160.41,0.00021999,120]
[339593307,1727722686672,500.0,0.00021999,120]
[339593308,1727722689451,500.0,0.00021999,120]
[339593309,1727722690820,500.0,0.00021999,120]
[339593310,1727722691412,1074.82,0.00021999,120]
[339593311,1727722691559,500.0,0.00021999,120]
[339593312,1727722696571,500.0,0.00021999,120]
[339593313,1727722696755,500.0,0.00021999,120]
[339593314,1727722698073,500.0,0.00021999,120]
[339593315,1727722698135,500.0,0.00021999,120]
[339593316,1727722700781,500.0,0.00021999,120]
[339593317,1727722700864,500.0,0.00021999,120]
[339593318,1727722703480,500.0,0.00021999,120]
[339593319,1727722711342,500.0,0.00021999,120]
[339593320,1727722712187,500.0,0.00021999,120]
[339593321,1727722715908,561.79,0.00021999,120]
[339593322,1727722724131,500.0,0.00021999,120]
[339593323,1727722726081,500.0,0.00021999,120]
[339593325,1727722734435,500.0,0.00021999,120]
[339593326,1727722736821,500.0,0.00021999,120]
[339593327,1727722739684,500.0,0.00021999,120]
[339593328,1727722742116,500.0,0.00021999,120]
[339593329,1727722743403,500.0,0.00021999,120]
[339593330,1727722745015,500.0,0.00021999,120]
[339593331,1727722751459,500.0,0.00021999,120]
[339593332,1727722753827,500.0,0.00021999,120]
[339593333,1727722754007,500.0,0.00021999,120]
[339593334,1727722756004,500.0,0.00021999,120]
[339593335,1727722758151,538.69,0.00021999,120]
[339593336,1727722758560,500.0,0.00021999,120]
[339593337,1727722759538,500.0,0.00021999,120]
[339593338,1727722760791,500.0,0.00021999,120]
[339593339,1727722762766,500.0,0.00021999,120]
[339593340,1727722763873,500.0,0.00021999,120]
[339593341,1727722766961,500.0,0.00021999,120]
[339593342,1727722767418,500.0,0.00021999,120]
[339593343,1727722769858,801.51,0.00021999,120]
[339593344,1727722771159,521.7115837,0.00021999,120]
[339593345,1727722773943,500.0,0.00021999,120]
[339593346,1727722775722,765.45,0.00021999,120]
[339593347,1727722795647,500.0,0.00021999,120]
[339593348,1727722801369,500.0,0.00021999,120]
[339593349,1727722802273,500.0,0.00021999,120]
[339593350,1727722810047,500.0,0.00021999,120]
[339593351,1727722814792,500.0,0.00021999,120]
[339593352,1727722815236,500.0,0.00021999,120]
[339593353,1727722819633,500.0,0.00021999,120]
[339593354,1727722820217,500.0,0.00021999,120]
[339593355,1727722820540,500.0,0.00021999,120]
[339593356,1727722823236,500.0,0.00021999,120]
[339593357,1727722826696,284.2293271,0.00021999,120]
[339593358,1727722827858,500.0,0.00021999,120]
[339593359,1727722828996,500.0,0.00021999,120]
[339593360,1727722831832,500.0,0.00021999,120]
[339593361,1727722832341,500.0,0.00021999,120]
[339593362,1727722832523,443.14282911,0.00021999,120]
[339593363,1727722833868,543.93,0.00021999,120]
[339593364,1727722835308,500.0,0.00021999,120]
[339593365,1727722840241,500.0,0.00021999,120]
[339593366,1727722841937,500.0,0.00021999,120]
[339593367,1727722844025,500.0,0.00021999,120]
[339593368,1727722844308,500.0,0.00021999,120]
[339593369,1727722844865,1055.63,0.00021999,120]
[339593370,1727722846019,500.0,0.00021999,120]
[339593371,1727722848468,500.0,0.00021999,120]
[339593372,1727722850884,500.0,0.00021999,120]
[339593373,1727722852357,500.0,0.00021999,120]
[339593374,1727722862758,500.0,0.00021999,120]
[339593375,1727722868319,597.3422076,0.00021999,120]
[339593376,1727722869126,500.0,0.00021999,120]
[339593377,1727722870793,500.0,0.00021999,120]
[339593378,1727722879635,500.0,0.00021999,120]
[339593379,1727722885694,500.0,0.00021999,120]
[339593380,1727722888138,629.28421942,0.00021999,120]
[339593381,1727722888712,500.0,0.00021999,120]
[339593382,1727722889188,500.0,0.00021999,120]
[339593383,1727722893529,500.0,0.00021999,120]
[339593384,1727722895178,500.0,0.00021999,120]
[339593385,1727722895273,779.24,0.00021999,120]
[339593386,1727722896975,500.0,0.00021999,120]
[339593387,1727722897174,500.0,0.00021999,120]
[339593388,1727722898527,-509.5689537,0.00010282,2]
[339593389,1727722898550,-284.0581712,0.00010388,2]
[339593390,1727722898575,-8712.4789824,0.00010417,2]
[339593391,1727722898599,-300.0,0.00011018,2]
[339593392,1727722898625,-224.0,0.00011019,2]
[339593393,1727722898648,-2000.0,0.0001102,2]
[339593394,1727722898671,-1651.76088692,0.0001102,2]
[339593395,1727722898695,-792.1075755,0.00011121,2]
[339593396,1727722898718,-6194.7433746,0.00011121,2]
[339593397,1727722898740,-193.22307627,0.00011245,2]
[339593398,1727722898763,-172.8752591,0.00011346,2]
[339593399,1727722898785,-746.65626619,0.00011838,2]
[339593400,1727722898809,-24900.0,0.00011838,2]
[339593401,1727722898832,-849.5556434,0.00011869,2]
[339593402,1727722898856,-233.875103,0.00011927,2]
[339593403,1727722898880,-233.875103,0.0001196,2]
[339593404,1727722898905,-233.875103,0.00011992,2]
[339593405,1727722898935,-233.875103,0.00012025,2]
[339593406,1727722898961,-233.875103,0.00012058,2]
[339593407,1727722898985,-233.875103,0.0001209,2]
[339593408,1727722899009,-420.0,0.00012107,2]
[339593409,1727722899034,-233.875103,0.00012123,2]
[339593410,1727722899059,-233.875103,0.00012156,2]
[339593411,1727722899085,-177.97098672,0.00012189,2]
[339593412,1727722901248,547.0945769,0.00021999,120]
[339593413,1727722903853,500.0,0.00021999,120]
[339593414,1727722904684,387.10534809,0.00021999,120]
[339593415,1727722906515,1030.03,0.00021999,120]
[339593416,1727722907509,500.0,0.00021999,120]
[339593417,1727722908095,755.49,0.00021999,120]
[339593418,1727722909031,500.0,0.00021999,120]
[339593419,1727722910560,500.0,0.00021999,120]
[339593420,1727722913148,500.0,0.00021999,120]
[339593421,1727722914536,500.0,0.00021999,120]
[339593422,1727722915039,500.0,0.00021999,120]
[339593423,1727722915203,607.03,0.00021999,120]
[339593424,1727722918831,594.8520333,0.00021999,120]
[339593425,1727722920616,500.0,0.00021999,120]
[339593426,1727722922273,635.10742962,0.00021999,120]
[339593427,1727722922439,500.0,0.00021999,120]
[339593428,1727722924672,906.71,0.00021999,120]
[339593429,1727722925531,500.0,0.00021999,120]
[339593430,1727722934168,500.0,0.00021999,120]
[339593431,1727722937295,500.0,0.00021999,120]
[339593432,1727722941565,500.0,0.00021999,120]
[339593433,1727722941647,502.49379527,0.00021999,120]
[339593434,1727722941948,500.0,0.00021999,120]
[339593435,1727722942219,500.0,0.00021999,120]
[339593436,1727722943837,500.0,0.00021999,120]
[339593437,1727722944305,500.0,0.00021999,120]
[339593438,1727722946743,500.0,0.00021999,120]
[339593439,1727722948369,500.0,0.00021999,120]
[339593440,1727722949306,500.0,0.00021999,120]
[339593441,1727722952659,500.0,0.00021999,120]
[339593442,1727722953901,500.0,0.00021999,120]
[339593443,1727722954134,500.0,0.00021999,120]
[339593444,1727722954354,1112.06,0.00021999,120]
[339593445,1727722959348,500.0,0.00021999,120]
[339593446,1727722959873,580.00359851,0.00021999,120]
[339593447,1727722966116,500.0,0.00021999,120]
[339593448,1727722967845,500.0,0.00021999,120]
[339593449,1727722970096,500.0,0.00021999,120]
[339593450,1727722970397,500.0,0.00021999,120]
[339593451,1727722972391,500.0,0.00021999,120]
[339593452,1727722972444,500.0,0.00021999,120]
[339593453,1727722972483,500.0,0.00021999,120]
[339593454,1727722972565,500.0,0.00021999,120]
[339593455,1727722974015,150.0,0.00021999,120]
[339593456,1727722975037,500.0,0.00021999,120]
[339593457,1727722975568,500.0,0.00021999,120]
[339593458,1727722976423,500.0,0.00021999,120]
[339593459,1727722978002,516.24,0.00021999,120]
[339593460,1727722979362,500.0,0.00021999,120]
[339593461,1727722979785,500.0,0.00021999,120]
[339593462,1727722980261,500.0,0.00021999,120]
[339593463,1727722980858,500.0,0.00021999,120]
[339593464,1727722980897,500.0,0.00021999,120]
[339593465,1727722981056,681.29,0.00021999,120]
[339593466,1727722983309,500.0,0.00021999,120]
[339593467,1727722985542,500.0,0.00021999,120]
[339593468,1727722985597,500.0,0.00021999,120]
[339593469,1727722990440,500.0,0.00021999,120]
[339593470,1727722996022,500.0,0.00021999,120]
[339593471,1727722996482,500.0,0.00021999,120]
[339593472,1727722998718,373.66414725,0.00021999,120]
[339593473,1727723000149,500.0,0.00021999,120]
[339593474,1727723000230,500.0,0.00021999,120]
[339593475,1727723000726,224.76198813,0.00021999,120]
[339593476,1727723001339,500.0,0.00021999,120]
[339593477,1727723004801,500.0,0.00021999,120]
[339593478,1727723006776,500.0,0.00021999,120]
[339593479,1727723011990,500.0,0.00021999,120]
[339593480,1727723012747,500.0,0.00021999,120]
[339593481,1727723013234,500.0,0.00021999,120]
[339593482,1727723014189,603.57,0.00021999,120]
[339593483,1727723014999,500.0,0.00021999,120]
[339593484,1727723017755,500.0,0.00021999,120]
[339593485,1727723017802,500.0,0.00021999,120]
[339593486,1727723022005,500.0,0.00021999,120]
[339593487,1727723022983,500.0,0.00021999,120]
[339593488,1727723025090,500.0,0.00021999,120]
[339593489,1727723029666,500.0,0.00021999,120]
[339593490,1727723029706,764.33,0.00021999,120]
[339593491,1727723030385,500.0,0.00021999,120]
[339593492,1727723030479,1397.18,0.00021999,120]
[339593493,1727723033795,500.0,0.00021999,120]
[339593494,1727723041524,972.54,0.00021999,120]
[339593495,1727723045904,500.0,0.00021999,120]
[339593496,1727723047502,500.0,0.00021999,120]
[339593497,1727723055147,500.0,0.00021999,120]
[339593498,1727723055710,500.0,0.00021999,120]
[339593499,1727723056104,500.0,0.00021999,120]
[339593500,1727723058387,500.0,0.00021999,120]
[339593501,1727723061721,500.0,0.00021999,120]
[339593502,1727723062521,500.0,0.00021999,120]
[339593503,1727723063529,521.27,0.00021999,120]
[339593504,1727723064176,500.0,0.00021999,120]
[339593505,1727723066604,500.0,0.00021999,120]
[339593506,1727723071164,500.0,0.00021999,120]
[339593507,1727723072820,182.41270686,0.00021999,120]
[339593508,1727723074852,500.0,0.00021999,120]
[339593509,1727723079293,500.0,0.00021999,120]
[339593510,1727723082769,500.0,0.00021999,120]
[339593511,1727723083268,500.0,0.00021999,120]
[339593512,1727723083734,500.0,0.00021999,120]
[339593513,1727723083910,516.55260359,0.00021999,120]
[339593514,1727723086459,500.0,0.00021999,120]
[339593515,1727723091330,500.0,0.00021999,120]
[339593516,1727723096013,500.0,0.00021999,120]
[339593517,1727723100519,1306.21,0.00021999,120]
[339593518,1727723100991,553.8,0.00021999,120]
[339593519,1727723103260,188.91865186,0.00021999,120]
[339593520,1727723104473,500.0,0.00021999,120]
[339593521,1727723105965,500.0,0.00021999,120]
[339593522,1727723106826,500.0,0.00021999,120]
[339593523,1727723109862,500.0,0.00021999,120]
[339593524,1727723113692,500.0,0.00021999,120]
[339593525,1727723114519,500.0,0.00021999,120]
[339593526,1727723116245,363.729234,0.00021999,120]
[339593527,1727723119578,501.38279478,0.00021999,120]
[339593528,1727723119762,500.0,0.00021999,120]
[339593529,1727723124239,500.0,0.00021999,120]
[339593530,1727723125460,500.0,0.00021999,120]
[339593531,1727723125609,500.0,0.00021999,120]
[339593532,1727723130662,500.0,0.00021999,120]
[339593533,1727723131204,500.0,0.00021999,120]
[339593534,1727723132419,500.0,0.00021999,120]
[339593535,1727723133843,579.31,0.00021999,120]
[339593536,1727723134031,500.0,0.00021999,120]
[339593537,1727723135790,500.0,0.00021999,120]
[339593538,1727723136143,581.73,0.00021999,120]
[339593539,1727723136411,1062.76,0.00021999,120]
[339593540,1727723137844,500.0,0.00021999,120]
[339593541,1727723138727,500.0,0.00021999,120]
[339593542,1727723142363,1506.69,0.00021999,120]
[339593543,1727723146389,500.0,0.00021999,120]
[339593544,1727723148122,500.0,0.00021999,120]
[339593545,1727723149867,987.12,0.00021999,120]
[339593546,1727723151474,500.0,0.00021999,120]
[339593547,1727723153171,500.0,0.00021999,120]
[339593548,1727723154807,550.54,0.00021999,120]
[339593549,1727723155001,500.0,0.00021999,120]
[339593550,1727723156690,500.0,0.00021999,120]
[339593551,1727723163509,500.0,0.00021999,120]
[339593552,1727723165054,1065.73,0.00021999,120]
[339593553,1727723165717,500.0,0.00021999,120]
[339593554,1727723166914,500.0,0.00021999,120]
[339593555,1727723169365,500.0,0.00021999,120]
[339593556,1727723174317,500.0,0.00021999,120]
[339593557,1727723175312,507.28,0.00021999,120]
[339593558,1727723179592,500.0,0.00021999,120]
[339593559,1727723181379,500.0,0.00021999,120]
[339593560,1727723185502,500.0,0.00021999,120]
[339593561,1727723187125,555.3,0.00021999,120]
[339593562,1727723190020,500.0,0.00021999,120]
[339593563,1727723191108,500.0,0.00021999,120]
[339593564,1727723194153,500.0,0.00021999,120]
[339593565,1727723196060,500.0,0.00021999,120]
[339593566,1727723196823,500.0,0.00021999,120]
[339593567,1727723196876,288.32,0.00021999,120]
[339593568,1727723199034,946.69,0.00021999,120]
[339593569,1727723206000,500.0,0.00021999,120]
[339593570,1727723207658,500.0,0.00021999,120]
[339593571,1727723207814,500.0,0.00021999,120]
[339593572,1727723210487,500.0,0.00021999,120]
[339593573,1727723214097,500.0,0.00021999,120]
[339593574,1727723214419,500.0,0.00021999,120]
[339593575,1727723219240,500.0,0.00021999,120]
[339593576,1727723220310,500.0,0.00021999,120]
[339593577,1727723220927,500.0,0.00021999,120]
[339593578,1727723221578,500.0,0.00021999,120]
[339593579,1727723223214,664.25,0.00021999,120]
[339593580,1727723225623,562.41,0.00021999,120]
[339593581,1727723226809,929.63,0.00021999,120]
[339593582,1727723227865,699.17,0.00021999,120]
[339593583,1727723232482,500.0,0.00021999,120]
[339593584,1727723234107,500.0,0.00021999,120]
[339593585,1727723234539,500.0,0.00021999,120]
[339593586,1727723236461,354.69178711,0.00021999,120]
[339593587,1727723240854,500.0,0.00021999,120]
[339593588,1727723241787,500.0,0.00021999,120]
[339593589,1727723247835,500.0,0.00021999,120]
[339593590,1727723247887,500.0,0.00021999,120]
[339593591,1727723248554,500.0,0.00021999,120]
[339593592,1727723251382,500.0,0.00021999,120]
[339593593,1727723251674,500.0,0.00021999,120]
[339593594,1727723255629,379.67208593,0.00021999,120]
[339593595,1727723255709,500.0,0.00021999,120]
[339593596,1727723258779,500.0,0.00021999,120]
[339593597,1727723259537,500.0,0.00021999,120]
[339593598,1727723262560,500.0,0.00021999,120]
[339593599,1727723265623,500.0,0.00021999,120]
[339593600,1727723270107,1000.0,0.00021999,120]
[339593601,1727723270666,500.0,0.00021999,120]
[339593602,1727723271512,500.0,0.00021999,120]
[339593603,1727723272774,500.0,0.00021999,120]
[339593604,1727723275324,500.0,0.00021999,120]
[339593605,1727723276037,500.0,0.00021999,120]
[339593606,1727723277483,500.0,0.00021999,120]
[339593607,1727723279774,500.0,0.00021999,120]
[339593608,1727723282344,482.6233952,0.00021999,120]
[339593609,1727723282562,500.0,0.00021999,120]
[339593610,1727723284275,1091.76,0.00021999,120]
[339593611,1727723288320,500.0,0.00021999,120]
[339593612,1727723293060,500.0,0.00021999,120]
[339593613,1727723293648,500.0,0.00021999,120]
[339593614,1727723294414,500.0,0.00021999,120]
[339593615,1727723299610,500.0,0.00021999,120]
[339593616,1727723301472,500.0,0.00021999,120]
[339593622,1727723305215,500.0,0.00021999,120]
[339593623,1727723307185,500.0,0.00021999,120]
[339593624,1727723308153,500.0,0.00021999,120]
[339593625,1727723314966,647.3,0.00021999,120]
[339593626,1727723317005,811.24,0.00021999,120]
[339593627,1727723322472,500.0,0.00021999,120]
[339593628,1727723327004,500.0,0.00021999,120]
[339593632,1727723327598,500.0,0.00021999,120]
[339593633,1727723329369,500.0,0.00021999,120]
[339593634,1727723330774,500.0,0.00021999,120]
[339593635,1727723334451,500.0,0.00021999,120]
[339593636,1727723337096,500.0,0.00021999,120]
[339593637,1727723341943,500.0,0.00021999,120]
[339593638,1727723344703,500.0,0.00021999,120]
[339593640,1727723344903,500.0,0.00021999,120]
[339593641,1727723344946,500.0,0.00021999,120]
[339593642,1727723346298,500.0,0.00021999,120]
[339593643,1727723347788,557.49,0.00021999,120]
[339593644,1727723349693,500.0,0.00021999,120]
[339593645,1727723352292,500.0,0.00021999,120]
[339593648,1727723353855,780.96,0.00021999,120]
[339593649,1727723354551,500.0,0.00021999,120]
[339593650,1727723354636,500.0,0.00021999,120]
[339593651,1727723355128,500.0,0.00021999,120]
[339593652,1727723357513,192.19560543,0.00021999,120]
[339593653,1727723359690,1021.32,0.00021999,120]
[339593654,1727723359881,500.0,0.00021999,120]
[339593655,1727723361355,500.0,0.00021999,120]
[339593656,1727723370539,1468.77,0.00021999,120]
[339593657,1727723372086,500.0,0.00021999,120]
[339593658,1727723373040,500.59503772,0.00021999,120]
[339593659,1727723376415,500.0,0.00021999,120]
[339593663,1727723380485,500.0,0.00021999,120]
[339593664,1727723380995,500.0,0.00021999,120]
[339593665,1727723381874,500.0,0.00021999,120]
[339593666,1727723390287,500.0,0.00021999,120]
[339593667,1727723391092,500.0,0.00021999,120]
[339593668,1727723391826,500.0,0.00021999,120]
[339593669,1727723393034,945.99,0.00021999,120]
[339593672,1727723402513,500.0,0.00021999,120]
[339593673,1727723403741,500.0,0.00021999,120]
[339593674,1727723405138,1541.57,0.00021999,120]
[339593675,1727723406263,500.0,0.00021999,120]
[339593676,1727723408990,500.0,0.00021999,120]
[339593677,1727723410298,1011.64,0.00021999,120]
[339593678,1727723414535,500.0,0.00021999,120]
[339593679,1727723415897,500.0,0.00021999,120]
[339593681,1727723421930,500.0,0.00021999,120]
[339593682,1727723423111,500.0,0.00021999,120]
[339593683,1727723425399,500.0,0.00021999,120]
[339593684,1727723426389,500.75923682,0.00021999,120]
[339593685,1727723428178,500.0,0.00021999,120]
[339593697,1727723432316,-164.28314,0.00011834,2]
[339593698,1727723432326,-225.0813651,0.00011843,2]
[339593699,1727723432335,-300.0,0.00011859,2]
[339593700,1727723432344,-3860.34514581,0.0001186,2]
[339593701,1727723432355,-21039.65485419,0.0001186,2]
[339593702,1727723432365,-164.28314,0.00011876,2]
[339593703,1727723432375,-164.28314,0.00011917,2]
[339593704,1727723432384,-164.28314,0.00011958,2]
[339593705,1727723432394,-164.28314,0.00011999,2]
[339593706,1727723432403,-164.28314,0.0001204,2]
[339593707,1727723432412,-164.28314,0.00012081,2]
[339593708,1727723432421,-164.28314,0.00012122,2]
[339593709,1727723432430,-164.28314,0.00012163,2]
[339593710,1727723432439,-164.28314,0.00012205,2]
[339593711,1727723432449,-164.28314,0.00012246,2]
[339593712,1727723432459,-164.28314,0.00012287,2]
[339593713,1727723432468,-164.28314,0.00012328,2]
[339593714,1727723432477,-164.28314,0.00012369,2]
[339593715,1727723432487,-164.28314,0.0001241,2]
[339593716,1727723432496,-164.28314,0.00012451,2]
[339593717,1727723432506,-298.464893,0.00012598,2]
[339593718,1727723432515,-298.464893,0.00012601,2]
[339593719,1727723432524,-298.464893,0.00012605,2]
[339593720,1727723432534,-298.464893,0.00012608,2]
[339593721,1727723432545,-298.464893,0.00012611,2]
[339593722,1727723432555,-298.464893,0.00012615,2]
[339593723,1727723432564,-497.77084413,0.00012618,2]
[339593724,1727723432574,-298.464893,0.00012618,2]
[339593725,1727723432583,-298.464893,0.00012621,2]
[339593726,1727723432592,-298.464893,0.00012624,2]
[339593727,1727723432602,-298.464893,0.00012628,2]
[339593728,1727723432612,-298.464893,0.00012631,2]
[339593729,1727723432621,-298.464893,0.00012634,2]
[339593730,1727723432631,-298.464893,0.00012638,2]
[339593731,1727723432640,-298.464893,0.00012641,2]
[339593732,1727723432649,-298.464893,0.00012644,2]
[339593733,1727723432659,-298.464893,0.00012648,2]
[339593734,1727723432668,-298.464893,0.00012651,2]
[339593735,1727723432677,-298.464893,0.00012654,2]
[339593736,1727723432689,-298.464893,0.00012658,2]
[339593737,1727723432699,-298.464893,0.00012661,2]
[339593738,1727723432711,-1298.42804154,0.00012736,2]
[339593739,1727723432728,-500.0,0.00012764,2]
[339593740,1727723432738,-1000.0,0.00013,6]
[339593741,1727723432748,-420.0,0.0001302,2]
[339593742,1727723432757,-209.3635278,0.00013119,2]
[339593743,1727723432769,-209.3635278,0.00013119,2]
[339593744,1727723432779,-209.3635278,0.00013119,2]
[339593745,1727723432789,-541.035357,0.00013151,2]
[339593746,1727723432799,-500.0,0.00013402,2]
[339593747,1727723432808,-6042.59060137,0.00013421,2]
[339593748,1727723432818,-160.0,0.00013548,3]
[339593749,1727723432830,-298.021,0.0001357,2]
[339593750,1727723432840,-525.0,0.0001357,2]
[339593751,1727723432849,-150.0,0.0001357,2]
[339593752,1727723432859,-1217.0,0.0001357,2]
[339593753,1727723432869,-7069.19095078,0.00013573,2]
[339593754,1727723432879,-209.3635278,0.000136,2]
[339593755,1727723432889,-711.24712532,0.00013658,2]
[339593756,1727723432898,-600.0,0.00013676,2]
[339593757,1727723432909,-173.0,0.00013688,2]
[339593758,1727723432919,-4602.770903,0.00013697,2]
[339593759,1727723432929,-1000.0,0.00013698,2]
[339593760,1727723432939,-1000.0,0.00013698,2]
[339593761,1727723432948,-584.22700737,0.00013698,2]
[339593762,1727723432959,-166.666666,0.00013699,2]
[339593763,1727723432968,-1013.209432,0.00013699,2]
[339593764,1727723432978,-3735.266337,0.00013699,2]
[339593765,1727723432987,-150.0,0.00013699,2]
[339593766,1727723432997,-150.0,0.00013699,2]
[339593767,1727723433007,-150.0,0.000137,30]
[339593768,1727723433017,-150.0,0.00013726,2]
[339593769,1727723433026,-150.0,0.00013726,2]
[339593770,1727723433036,-159.37350273,0.00013739,2]
[339593771,1727723433046,-4849.55013219,0.00013739,2]
[339593772,1727723433056,-150.0,0.00013754,2]
[339593773,1727723433066,-150.0,0.00013754,2]
[339593774,1727723433075,-380.0,0.0001376,2]
[339593775,1727723433085,-500.0,0.00013772,2]
[339593776,1727723433095,-150.0,0.00013781,2]
[339593777,1727723433105,-241.30539446,0.00013781,2]
[339593778,1727723433115,-500.0,0.00013799,2]
[339593779,1727723433125,-291.64125952,0.00013809,2]
[339593780,1727723433136,-600.0,0.00013819,2]
[339593781,1727723433145,-500.0,0.00013827,2]
[339593782,1727723433155,-500.0,0.00013854,2]
[339593783,1727723433165,-500.0,0.00013882,2]
[339593784,1727723433175,-209.3635278,0.00013884,2]
[339593785,1727723433185,-209.3635278,0.00013884,2]